bitfinex-derivatives/quotes_SOLF0:USTF0_20250425
["timestamp","ask_amount","ask_price","bid_price","bid_amount"]
[1745571354945,6.4705,154.5,154.47,6.4713]
[1745571355147,6.4708,154.49,154.47,12.16622458]
[1745571355347,27.0838,154.56,154.48,6.4709]
[1745571355650,6.4702,154.51,154.48,6.4709]
[1745571356252,5.69492458,154.53,154.49,5.69492458]
[1745571356758,6.4702,154.51,154.49,5.69492458]
[1745571356948,5.69492458,154.53,154.49,5.69492458]
[1745571357256,6.4689,154.54,154.51,6.4697]
[1745571357447,6.4689,154.54,154.51,12.16462458]
[1745571357954,6.4685,154.55,154.52,6.4695]
[1745571359557,28.83492458,154.57,154.51,5.69492458]
[1745571359756,5.69492458,154.55,154.51,5.69492458]
[1745571360357,6.4691,154.54,154.51,12.16452458]
[1745571360857,12.16322458,154.55,154.53,6.4691]
[1745571361060,12.16322458,154.55,154.51,5.69492458]
[1745571361259,5.69492458,154.55,154.51,5.69492458]
[1745571361459,6.4689,154.54,154.51,12.16472458]
[1745571362462,6.4689,154.54,154.52,6.4695]
[1745571363261,6.4683,154.55,154.52,6.4695]
[1745571363561,28.83492458,154.57,154.53,5.69492458]
[1745571363762,5.69492458,154.57,154.53,5.69492458]
[1745571363962,12.16252458,154.57,154.54,6.4685]
[1745571364162,7.53052458,154.59,154.53,5.69492458]
[1745571364358,5.69492458,154.59,154.55,5.69492458]
[1745571364560,6.4667,154.59,154.56,6.4676]
[1745571365063,15.98202458,154.6,154.57,6.4674]
[1745571365264,10.2871,154.6,154.57,6.4674]
[1745571365570,6.4663,154.6,154.57,6.4674]
[1745571366069,5.69492458,154.61,154.57,6.4674]
[1745571366261,6.4667,154.59,154.56,6.4676]
[1745571367070,6.467,154.58,154.56,6.4676]
[1745571367873,6.467,154.58,154.55,12.16302458]
[1745571368074,6.467,154.58,154.55,5.69492458]
[1745571368868,6.467,154.58,154.56,6.4679]
[1745571369075,6.467,154.58,154.55,5.69492458]
[1745571370175,6.467,154.58,154.56,6.4676]
[1745571370572,6.467,154.58,154.55,5.69492458]
[1745571370772,6.467,154.58,154.55,12.16302458]
[1745571370973,5.69492458,154.59,154.55,5.69492458]
[1745571371271,5.69492458,154.57,154.53,23.12]
[1745571371471,6.4689,154.54,154.52,5.69492458]
[1745571372067,6.4685,154.55,154.52,5.69492458]
[1745571372268,5.69492458,154.57,154.52,5.69492458]
[1745571372663,6.4685,154.55,154.52,5.69492458]
[1745571372973,6.4685,154.55,154.52,12.16422458]
[1745571373274,6.4685,154.55,154.52,5.69492458]
[1745571373574,6.4685,154.55,154.53,6.469]
[1745571374273,5.69492458,154.55,154.49,5.69492458]
[1745571374468,5.69492458,154.51,154.45,23.12]
[1745571374668,6.4714,154.48,154.45,12.16712458]
[1745571375263,6.471,154.49,154.45,5.69492458]
[1745571375664,6.471,154.49,154.42,30.70359113]
[1745571375665,6.4705,154.5,154.42,30.70359113]
[1745571375865,489.28,154.62,154.49,5.69492458]
[1745571376069,5.69492458,154.59,154.54,5.69492458]
[1745571376870,6.4667,154.59,154.56,5.69492458]
[1745571377075,9.50992458,154.61,154.56,5.69492458]
[1745571377576,6.4674,154.58,154.54,5.69492458]
[1745571378073,6.4674,154.58,154.56,6.4679]
[1745571378274,6.4668,154.59,154.56,12.16282458]
[1745571379277,6.4668,154.59,154.56,6.4679]
[1745571380477,6.467,154.58,154.56,6.4679]
[1745571382384,6.467,154.58,154.55,6.4681]
[1745571383583,6.4677,154.57,154.54,29.5886]
[1745571383781,6.4677,154.57,154.54,6.4686]
[1745571384579,6.4679,154.56,154.54,6.4686]
[1745571384784,12.7159063,154.61,154.54,6.4686]
[1745571385287,6.4679,154.56,154.53,6.4689]
[1745571386483,12.7159063,154.61,154.51,32.0209063]
[1745571386786,6.4685,154.55,154.52,6.4693]
[1745571387282,6.4681,154.56,154.53,6.4691]
[1745571387481,23.12,154.58,154.51,32.0209063]
[1745571387885,6.4677,154.57,154.54,6.4684]
[1745571388384,6.4677,154.57,154.55,6.4682]
[1745571388585,29.5872,154.58,154.55,6.4682]
[1745571388884,23.12,154.58,154.55,6.4682]
[1745571389085,6.4679,154.57,154.53,8.9009063]
[1745571389584,6.4679,154.57,154.54,6.4685]
[1745571394683,23.12,154.58,154.53,15.3698063]
[1745571394884,23.12,154.58,154.51,23.12]
[1745571395883,6.4694,154.53,154.51,23.12]
[1745571396881,6.4689,154.54,154.51,23.12]
[1745571397086,6.4689,154.54,154.51,29.5897]
[1745571397486,6.4692,154.53,154.51,29.5897]
[1745571397888,6.4692,154.53,154.51,23.12]
[1745571398085,6.4695,154.52,154.51,23.12]
[1745571398287,1.8324,154.57,154.5,6.4702]
[1745571398489,6.4693,154.53,154.5,6.4702]
[1745571398790,1.8324,154.57,154.5,6.4702]
[1745571398987,6.4695,154.53,154.5,6.4702]
[1745571399387,6.4695,154.53,154.51,5.06696851]
[1745571400091,6.4695,154.52,154.51,5.06696851]
[1745571400693,6.4693,154.53,154.51,5.06696851]
[1745571402690,6.4688,154.54,154.51,11.53686851]
[1745571402892,1.8324,154.57,154.53,5.06696851]
[1745571403193,23.12,154.58,154.55,5.06696851]
[1745571403387,6.4676,154.57,154.55,5.06696851]
[1745571405097,6.4679,154.56,154.53,6.4689]
[1745571405393,28.18696851,154.58,154.53,5.06696851]
[1745571405586,6.4677,154.57,154.54,6.4685]
[1745571405998,28.18696851,154.58,154.54,6.4685]
[1745571406191,12.9278,154.66,154.57,5.06696851]
[1745571406493,5.06696851,154.62,154.57,5.06696851]
[1745571406693,6.4669,154.59,154.57,5.06696851]
[1745571407492,5.06696851,154.62,154.57,5.06696851]
[1745571407699,6.467,154.58,154.57,5.06696851]
[1745571408500,6.467,154.58,154.55,11.53496851]
[1745571408799,29.0006,154.61,154.57,5.06696851]
[1745571409298,6.4669,154.59,154.57,5.06696851]
[1745571412603,6.4671,154.58,154.55,6.4681]
[1745571412791,6.4671,154.58,154.57,5.06696851]
[1745571413399,6.4668,154.59,154.57,5.06696851]
[1745571413798,29.0006,154.61,154.57,5.06696851]
[1745571414801,6.4669,154.59,154.57,5.06696851]
[1745571417504,6.467,154.58,154.57,5.06696851]
[1745571417702,5.06696851,154.6,154.55,5.06696851]
[1745571418103,6.4676,154.57,154.55,5.06696851]
[1745571418298,5.06696851,154.58,154.53,5.06696851]
[1745571418806,6.4685,154.55,154.53,5.06696851]
[1745571419599,6.4687,154.54,154.53,5.06696851]
[1745571419906,5.06696851,154.58,154.53,5.06696851]
[1745571420309,6.4684,154.55,154.53,5.06696851]
[1745571420607,6.4684,154.55,154.53,11.53606851]
[1745571421007,6.4684,154.55,154.53,5.06696851]
[1745571422806,6.4684,154.55,154.52,6.4694]
[1745571423005,6.4688,154.54,154.52,5.06696851]
[1745571424306,6.4688,154.54,154.52,11.53646851]
[1745571424508,6.4688,154.54,154.52,5.06696851]
[1745571424803,6.4691,154.53,154.52,5.06696851]
[1745571425008,5.06696851,154.53,154.49,28.18696851]
[1745571425710,6.4699,154.52,154.49,34.65766851]
[1745571425911,5.06696851,154.53,154.49,34.65766851]
[1745571426210,11.53626851,154.53,154.49,34.65766851]
[1745571427012,11.53626851,154.53,154.5,6.4703]
[1745571428012,11.53626851,154.53,154.49,28.18696851]
[1745571428013,6.4697,154.52,154.49,34.65756851]
[1745571428315,6.4697,154.52,154.49,28.18696851]
[1745571428915,6.4697,154.52,154.5,6.4703]
[1745571431318,6.4692,154.53,154.5,6.4703]
[1745571431517,6.4692,154.53,154.51,6.4699]
[1745571432226,6.4692,154.53,154.5,6.4702]
[1745571432817,5.06696851,154.55,154.51,5.06696851]
[1745571433119,5.06696851,154.56,154.51,5.06696851]
[1745571433319,6.4686,154.55,154.52,6.4693]
[1745571433522,5.06696851,154.56,154.51,5.06696851]
[1745571433823,6.4687,154.54,154.51,11.53676851]
[1745571434627,5.06696851,154.54,154.49,28.18696851]
[1745571434924,6.47,154.51,154.49,28.18696851]
[1745571435117,5.06696851,154.52,154.49,5.06696851]
[1745571435423,11.53676851,154.52,154.49,11.53756851]
[1745571436725,6.4698,154.52,154.5,6.4703]
[1745571436925,6.4693,154.53,154.5,6.4703]
[1745571437126,5.06696851,154.54,154.49,5.06696851]
[1745571437324,6.4697,154.52,154.49,5.06696851]
[1745571437827,5.06696851,154.54,154.49,11.53756851]
[1745571438124,5.06696851,154.54,154.49,5.06696851]
[1745571438429,5.06696851,154.54,154.49,11.53756851]
[1745571438624,6.4698,154.52,154.49,11.53756851]
[1745571438927,6.4698,154.52,154.5,6.4704]
[1745571439530,6.4693,154.53,154.5,6.4704]
[1745571439829,5.06696851,154.54,154.49,11.53756851]
[1745571440130,6.4697,154.52,154.49,11.53756851]
[1745571442329,6.47,154.51,154.49,11.53756851]
[1745571442930,6.47,154.51,154.49,5.06696851]
[1745571443335,6.4694,154.53,154.49,5.06696851]
[1745571443526,5.06696851,154.54,154.5,6.47]
[1745571443728,5.06696851,154.54,154.49,5.06696851]
[1745571443927,6.4698,154.52,154.49,5.06696851]
[1745571444220,6.4698,154.52,154.49,11.53736851]
[1745571444833,5.06696851,154.54,154.5,6.4701]
[1745571445033,5.06696851,154.54,154.49,5.06696851]
[1745571445533,6.4697,154.52,154.49,11.53746851]
[1745571448232,6.4701,154.51,154.49,11.53746851]
[1745571449434,6.4701,154.51,154.49,5.06696851]
[1745571450232,6.4704,154.5,154.49,5.06696851]
[1745571451527,5.06696851,154.52,154.46,5.06696851]
[1745571451834,5.06696851,154.5,154.46,5.06696851]
[1745571452034,6.4715,154.48,154.46,5.06696851]
[1745571452233,23.12,154.53,154.46,5.06696851]
[1745571452433,28.18696851,154.53,154.48,5.06696851]
[1745571452636,6.4702,154.51,154.48,5.06696851]
[1745571452934,6.4702,154.51,154.48,11.53786851]
[1745571453137,5.06696851,154.53,154.48,5.06696851]
[1745571453639,6.4697,154.52,154.49,6.4705]
[1745571455237,6.47,154.51,154.49,6.4705]
[1745571455437,5.06696851,154.53,154.49,6.4705]
[1745571455928,6.4698,154.52,154.49,6.4705]
[1745571456540,6.4698,154.52,154.49,6.4704]
[1745571456837,6.4698,154.52,154.48,5.06696851]
[1745571457034,6.4698,154.52,154.5,6.4703]
[1745571457940,6.4698,154.52,154.49,6.4707]
[1745571459840,6.47,154.51,154.48,11.53806851]
[1745571460342,6.47,154.51,154.49,6.4707]
[1745571460544,6.4697,154.52,154.49,6.4707]
[1745571462239,6.4701,154.51,154.48,11.53796851]
[1745571462544,6.4701,154.51,154.48,5.06696851]
[1745571462739,6.4699,154.52,154.49,6.4707]
[1745571464845,6.47,154.51,154.49,6.4707]
[1745571465047,6.47,154.51,154.48,11.53796851]
[1745571465344,6.47,154.51,154.48,5.06696851]
[1745571465945,6.4697,154.52,154.49,6.4706]
[1745571468942,11.53616851,154.53,154.5,6.4701]
[1745571470451,5.06696851,154.53,154.51,6.4698]
[1745571471054,5.06696851,154.53,154.5,6.4703]
[1745571471552,11.53626851,154.53,154.5,6.4703]
[1745571472154,11.53626851,154.53,154.51,6.4699]
[1745571472456,11.53626851,154.53,154.48,5.06696851]
[1745571473154,11.53626851,154.53,154.5,6.4702]
[1745571474257,6.4693,154.53,154.5,6.4702]
[1745571474447,6.4693,154.53,154.51,6.4699]
[1745571474651,6.4693,154.53,154.48,5.06696851]
[1745571475756,5.06696851,154.54,154.49,6.4706]
[1745571475952,5.06696851,154.54,154.48,5.06696851]
[1745571476952,6.4699,154.52,154.49,6.4708]
[1745571477255,5.06696851,154.54,154.49,6.4708]
[1745571477456,5.06696851,154.54,154.47,28.18696851]
[1745571477659,5.06696851,154.52,154.47,28.18696851]
[1745571478055,6.4705,154.5,154.47,34.65836851]
[1745571478957,6.4705,154.5,154.48,6.4711]
[1745571479554,6.4701,154.51,154.48,6.4711]
[1745571479856,6.4701,154.51,154.49,6.4707]
[1745571480058,6.4698,154.52,154.49,5.06696851]
[1745571481060,6.4698,154.52,154.49,11.53746851]
[1745571482159,6.4698,154.52,154.5,6.4703]
[1745571483360,5.06696851,154.54,154.49,5.06696851]
[1745571483361,6.47,154.51,154.49,5.06696851]
[1745571483861,6.4697,154.52,154.49,11.53746851]
[1745571486062,6.4697,154.52,154.5,6.4703]
[1745571487563,6.4697,154.52,154.49,11.53756851]
[1745571487861,6.4697,154.52,154.49,5.06696851]
[1745571488253,6.4697,154.52,154.49,11.53756851]
[1745571491464,6.47,154.51,154.49,11.53756851]
[1745571491666,6.47,154.51,154.49,5.06696851]
[1745571492866,6.4697,154.52,154.49,5.06696851]
[1745571493066,6.4697,154.52,154.49,11.53766851]
[1745571495764,5.06696851,154.52,154.46,5.06696851]
[1745571495970,5.06696851,154.5,154.45,5.06696851]
[1745571496269,6.471,154.49,154.46,6.4719]
[1745571496460,5.06696851,154.5,154.46,6.4719]
[1745571496665,5.06696851,154.5,154.45,5.06696851]
[1745571497673,6.4719,154.47,154.45,5.06696851]
[1745571498270,6.4719,154.47,154.45,11.53936851]
[1745571498570,6.4714,154.48,154.45,11.53936851]
[1745571499374,6.4716,154.47,154.45,11.53936851]
[1745571499877,5.06696851,154.5,154.45,11.53936851]
[1745571500170,6.4714,154.48,154.45,11.53936851]
[1745571500472,6.4727,154.45,154.42,30.74029553]
[1745571500672,5.06696851,154.47,154.42,23.1]
[1745571500970,5.06696851,154.47,154.43,11.54006851]
[1745571501265,6.4723,154.46,154.43,11.54006851]
[1745571501472,6.4723,154.46,154.43,6.4731]
[1745571504579,5.06696851,154.47,154.45,6.4722]
[1745571504874,5.06696851,154.47,154.46,23.1]
[1745571505775,11.53856851,154.47,154.46,23.1]
[1745571508883,6.4724,154.46,154.43,6.4731]
[1745571509083,23.1,154.52,154.42,23.12]
[1745571509084,5.06696851,154.45,154.42,23.12]
[1745571509284,5.06696851,154.43,154.42,23.12]
[1745571509481,6.4731,154.44,154.42,23.12]
[1745571509785,5.06696851,154.45,154.42,23.12]
[1745571510583,6.4733,154.43,154.42,23.12]
[1745571514487,6.4731,154.44,154.41,6.4741]
[1745571514689,5.06696851,154.45,154.41,23.12]
[1745571514882,5.06696851,154.45,154.41,29.5941]
[1745571515179,6.4731,154.44,154.41,29.5941]
[1745571515384,5.06696851,154.45,154.41,23.12]
[1745571515787,6.4731,154.44,154.41,23.12]
[1745571516087,6.4731,154.44,154.41,29.594]
[1745571517087,6.4731,154.44,154.41,6.474]
[1745571517290,6.4731,154.44,154.41,29.574]
[1745571518089,6.4731,154.44,154.41,34.64096851]
[1745571520191,6.4731,154.44,154.41,11.54096851]
[1745571520590,6.4731,154.44,154.41,34.64096851]
[1745571520889,6.4734,154.43,154.41,34.64096851]
[1745571521391,6.4737,154.42,154.41,23.1]
[1745571521586,5.06696851,154.45,154.41,23.1]
[1745571522293,6.4734,154.43,154.41,23.1]
[1745571523594,6.4734,154.43,154.4,6.4743]
[1745571523793,6.4734,154.43,154.4,29.5943]
[1745571524397,6.4734,154.43,154.4,6.4743]
[1745571524594,6.4734,154.43,154.4,29.5943]
[1745571524893,6.4734,154.43,154.4,6.4743]
[1745571525294,6.4734,154.43,154.4,29.5943]
[1745571527794,5.06696851,154.42,154.35,5.9892]
[1745571527992,5.06696851,154.42,154.36,28.18696851]
[1745571528394,6.4748,154.4,154.36,28.18696851]
[1745571528594,5.06696851,154.42,154.36,28.18696851]
[1745571528794,6.4746,154.41,154.37,6.4756]
[1745571529900,6.4746,154.4,154.37,6.4756]
[1745571530095,6.4746,154.4,154.38,6.4753]
[1745571530294,6.4746,154.4,154.38,11.54226851]
[1745571530499,6.4739,154.42,154.39,6.4748]
[1745571530902,6.4743,154.41,154.38,5.06696851]
[1745571531500,6.4739,154.42,154.39,6.4749]
[1745571532899,6.4739,154.42,154.38,5.06696851]
[1745571532900,6.4742,154.41,154.38,11.54216851]
[1745571533898,6.4746,154.4,154.37,6.4755]
[1745571534201,5.06696851,154.4,154.36,23.12]
[1745571534700,6.4752,154.39,154.36,23.12]
[1745571534900,6.4752,154.39,154.36,28.18696851]
[1745571536002,6.4747,154.4,154.36,28.18696851]
[1745571536402,6.4747,154.4,154.38,5.06696851]
[1745571540399,5.06696851,154.45,154.38,5.06696851]
[1745571540695,5.06696851,154.45,154.4,5.06696851]
[1745571540895,6.4737,154.43,154.4,28.18696851]
[1745571541300,5.06696851,154.45,154.4,28.18696851]
[1745571541502,6.4739,154.42,154.4,23.12]
[1745571541803,6.4739,154.42,154.39,11.54176851]
[1745571542004,6.4739,154.42,154.39,34.66176851]
[1745571543502,6.4742,154.41,154.39,28.18696851]
[1745571544002,6.4742,154.41,154.39,5.06696851]
[1745571544300,6.4742,154.41,154.39,28.18696851]
[1745571544707,6.4746,154.4,154.37,11.54266851]
[1745571544909,6.4746,154.4,154.38,23.12]
[1745571545107,5.06696851,154.43,154.38,23.12]
[1745571545603,5.06696851,154.41,154.37,28.18696851]
[1745571546107,6.475,154.39,154.37,28.18696851]
[1745571548702,6.4754,154.38,154.37,28.18696851]
[1745571550606,6.4754,154.38,154.37,23.12]
[1745571551508,5.06696851,154.39,154.34,5.06696851]
[1745571551802,5.06696851,154.39,154.35,23.12]
[1745571552607,6.476,154.37,154.35,23.12]
[1745571554509,6.476,154.37,154.35,29.5964]
[1745571557312,6.4756,154.38,154.35,29.5964]
[1745571558302,6.4751,154.39,154.36,11.54286851]
[1745571559003,6.4751,154.39,154.37,6.4758]
[1745571560108,6.4751,154.39,154.36,11.54296851]
[1745571561812,6.4754,154.38,154.36,11.54296851]
[1745571562607,6.4751,154.39,154.36,11.54296851]
[1745571562809,6.4751,154.39,154.37,6.4758]
[1745571563613,6.4751,154.39,154.36,11.54296851]
[1745571563913,6.4755,154.38,154.36,11.54296851]
[1745571564511,6.4752,154.39,154.36,11.54296851]
[1745571565111,6.4755,154.38,154.36,11.54296851]
[1745571565514,6.4755,154.38,154.36,5.06696851]
[1745571565710,6.4752,154.39,154.36,5.06696851]
[1745571566415,6.4752,154.39,154.36,11.54316851]
[1745571566813,6.4748,154.4,154.36,11.54316851]
[1745571569113,6.475,154.39,154.37,6.4757]
[1745571569419,6.475,154.39,154.36,5.06696851]
[1745571569712,6.475,154.39,154.36,11.54296851]
[1745571569913,6.4755,154.38,154.36,11.54296851]
[1745571571217,6.4755,154.38,154.36,5.06696851]
[1745571572315,6.4755,154.38,154.36,11.54316851]
[1745571572817,6.4755,154.38,154.36,5.06696851]
[1745571573017,6.4751,154.39,154.36,5.06696851]
[1745571573412,5.06696851,154.41,154.36,11.54296851]
[1745571573917,6.4755,154.38,154.36,28.18696851]
[1745571577319,6.4758,154.37,154.36,5.06696851]
[1745571577519,5.06696851,154.39,154.34,28.18696851]
[1745571577818,6.4764,154.36,154.27,363.76762186]
[1745571578015,6.4764,154.36,154.33,5.06696851]
[1745571578216,5.06696851,154.37,154.33,28.18696851]
[1745571579217,6.4769,154.35,154.33,28.18696851]
[1745571579817,5.06696851,154.39,154.33,28.18696851]
[1745571580018,5.06696851,154.41,154.36,5.06696851]
[1745571580715,6.4754,154.38,154.36,11.54296851]
[1745571580921,5.06696851,154.41,154.36,11.54296851]
[1745571581317,6.4753,154.39,154.36,11.54296851]
[1745571583224,6.4754,154.38,154.36,11.54296851]
[1745571584324,6.4752,154.39,154.36,11.54296851]
[1745571584923,6.4755,154.38,154.36,11.54296851]
[1745571586130,6.4758,154.37,154.35,5.06696851]
[1745571587226,6.4762,154.36,154.35,5.06696851]
[1745571590531,25.1404,154.43,154.35,5.06696851]
[1745571590725,5.06696851,154.4,154.35,5.06696851]
[1745571590926,25.1404,154.43,154.37,5.06696851]
[1745571591125,6.4754,154.39,154.37,5.06696851]
[1745571591825,6.4754,154.38,154.37,5.06696851]
[1745571593634,5.06696851,154.4,154.35,11.54356851]
[1745571594430,6.4756,154.38,154.35,11.54356851]
[1745571597529,6.4759,154.37,154.35,11.54356851]
[1745571597933,5.06696851,154.4,154.35,5.06696851]
[1745571598835,6.4765,154.36,154.33,34.66426851]
[1745571599835,6.4768,154.35,154.33,34.66426851]
[1745571600335,6.4764,154.36,154.33,34.66426851]
[1745571600632,5.06696851,154.38,154.33,28.18696851]
[1745571600838,6.4769,154.35,154.33,28.18696851]
[1745571602841,38.0874,154.43,154.29,6.4789]
[1745571602842,6.478,154.32,154.29,6.4789]
[1745571603042,6.478,154.32,154.27,23.12]
[1745571603245,5.06696851,154.34,154.27,23.12]
[1745571603546,6.479,154.3,154.27,23.12]
[1745571603746,1.8643,154.36,154.29,5.06696851]
[1745571603945,6.4773,154.34,154.31,5.06696851]
[1745571606246,6.4773,154.34,154.3,11.54556851]
[1745571606450,6.4773,154.34,154.31,6.4783]
[1745571607347,5.06696851,154.36,154.32,5.06696851]
[1745571607538,3.746,154.37,154.32,5.06696851]
[1745571608149,6.4765,154.36,154.32,11.54466851]
[1745571609449,10.2219,154.37,154.33,6.4772]
[1745571610351,6.4756,154.38,154.34,11.54396851]
[1745571610549,28.16696851,154.41,154.36,5.06696851]
[1745571611047,5.06696851,154.41,154.36,5.06696851]
[1745571611448,6.4748,154.4,154.36,11.54306851]
[1745571611650,5.06696851,154.41,154.36,5.06696851]
[1745571611947,6.4749,154.4,154.36,11.54306851]
[1745571612350,6.4749,154.4,154.36,6.4761]
[1745571612550,6.4749,154.4,154.37,11.54276851]
[1745571613351,6.4743,154.41,154.39,5.06696851]
[1745571613651,3.8063,154.43,154.39,5.06696851]
[1745571613851,5.06696851,154.44,154.39,5.06696851]
[1745571614352,5.06696851,154.46,154.41,5.06696851]
[1745571614747,6.4729,154.44,154.41,5.06696851]
[1745571615152,6.4729,154.44,154.41,11.54096851]
[1745571616149,11.53916851,154.46,154.41,5.06696851]
[1745571616354,28.16696851,154.53,154.45,5.06696851]
[1745571616556,5.06696851,154.53,154.48,5.06696851]
[1745571616757,6.4705,154.5,154.48,5.06696851]
[1745571616955,5.06696851,154.53,154.48,5.06696851]
[1745571617254,6.4701,154.51,154.48,5.06696851]
[1745571619458,6.4701,154.51,154.48,11.53816851]
[1745571619756,6.4701,154.51,154.48,5.06696851]
[1745571620055,5.06696851,154.53,154.48,5.06696851]
[1745571620557,6.4702,154.51,154.48,5.06696851]
[1745571621456,6.4704,154.5,154.48,5.06696851]
[1745571621958,6.4704,154.5,154.46,11.53886851]
[1745571622455,6.4704,154.5,154.47,6.4715]
[1745571622762,6.4709,154.49,154.46,5.06696851]
[1745571622950,5.06696851,154.51,154.46,11.53876851]
[1745571623559,6.4706,154.5,154.46,11.53876851]
[1745571625761,6.4708,154.49,154.46,11.53876851]
[1745571626658,6.472,154.46,154.43,5.06696851]
[1745571626864,6.472,154.46,154.43,28.16696851]
[1745571627162,5.06696851,154.45,154.41,5.06696851]
[1745571627764,11.53966851,154.45,154.42,6.4737]
[1745571628164,5.06696851,154.45,154.41,5.06696851]
[1745571628366,5.06696851,154.45,154.41,28.16696851]
[1745571628967,6.4729,154.44,154.41,34.64086851]
[1745571629166,5.06696851,154.45,154.41,34.64086851]
[1745571629362,5.06696851,154.45,154.41,28.16696851]
[1745571630466,6.4729,154.44,154.41,28.16696851]
[1745571631163,3.7847,154.49,154.41,23.1]
[1745571631164,11.54056851,154.43,154.41,23.1]
[1745571631567,5.06696851,154.43,154.39,5.06696851]
[1745571631961,5.06696851,154.43,154.38,23.1]
[1745571632361,5.06696851,154.41,154.38,23.1]
[1745571632870,11.54146851,154.41,154.38,23.1]
[1745571633064,5.06696851,154.41,154.38,23.1]
[1745571633667,5.06696851,154.43,154.38,23.1]
[1745571633866,6.4746,154.4,154.38,23.1]
[1745571634269,5.06696851,154.43,154.38,23.1]
[1745571634466,6.4743,154.41,154.38,23.1]
[1745571635669,6.4739,154.42,154.38,29.5753]
[1745571635868,5.06696851,154.43,154.38,29.5753]
[1745571636065,5.06696851,154.43,154.38,23.1]
[1745571636768,23.1,154.47,154.38,23.1]
[1745571636769,5.06696851,154.41,154.38,23.1]
[1745571637169,6.475,154.39,154.38,23.1]
[1745571637670,5.06696851,154.41,154.35,28.16696851]
[1745571637866,5.06696851,154.39,154.34,5.06696851]
[1745571638167,5.06696851,154.39,154.35,23.1]
[1745571639469,6.4758,154.37,154.35,23.1]
[1745571639673,5.06696851,154.39,154.35,23.1]
[1745571640371,6.4755,154.38,154.35,23.1]
[1745571640763,6.4755,154.38,154.33,11.54416851]
[1745571640968,11.54286851,154.37,154.33,5.06696851]
[1745571641169,5.06696851,154.35,154.3,5.06696851]
[1745571641771,5.06696851,154.35,154.29,6.4791]
[1745571641972,5.06696851,154.33,154.28,5.06696851]
[1745571642273,6.478,154.32,154.28,11.54626851]
[1745571642471,23.1,154.35,154.28,5.06696851]
[1745571642778,5.06696851,154.34,154.28,5.06696851]
[1745571642975,6.4775,154.33,154.29,6.4788]
[1745571643275,5.06696851,154.34,154.28,5.06696851]
[1745571643672,6.4777,154.33,154.29,6.479]
[1745571644876,6.4777,154.33,154.3,6.4787]
[1745571645072,6.4779,154.32,154.28,5.06696851]
[1745571645275,5.06696851,154.34,154.28,5.06696851]
[1745571645676,6.4778,154.33,154.3,6.4787]
[1745571645872,5.06696851,154.34,154.28,5.06696851]
[1745571646174,6.4778,154.33,154.28,5.06696851]
[1745571646475,5.06696851,154.34,154.28,5.06696851]
[1745571647074,11.54426851,154.34,154.31,6.4783]
[1745571648877,5.06696851,154.34,154.3,5.06696851]
[1745571649079,23.1,154.35,154.3,5.06696851]
[1745571649483,29.5767,154.35,154.32,6.4777]
[1745571650383,5.06696851,154.34,154.24,36.0619]
[1745571650585,5.06696851,154.34,154.28,5.06696851]
[1745571650983,6.4775,154.33,154.3,6.4785]
[1745571651181,5.06696851,154.34,154.3,5.06696851]
[1745571651382,6.4778,154.33,154.3,11.54546851]
[1745571651785,5.06696851,154.34,154.3,11.54546851]
[1745571652084,6.4778,154.33,154.3,11.54546851]
[1745571653788,6.4778,154.33,154.3,5.06696851]
[1745571654287,6.4778,154.33,154.3,11.54546851]
[1745571654587,6.4779,154.32,154.3,11.54546851]
[1745571656088,5.06696851,154.34,154.31,6.4783]
[1745571656286,23.1,154.35,154.31,6.4783]
[1745571656585,6.4777,154.33,154.31,6.4783]
[1745571656786,23.1,154.35,154.3,11.54556851]
[1745571656983,23.1,154.35,154.3,6.4786]
[1745571657186,5.06696851,154.34,154.3,5.06696851]
[1745571658092,5.06696851,154.34,154.28,23.1]
[1745571658387,5.06696851,154.32,154.27,5.06696851]
[1745571658891,6.4794,154.29,154.27,5.06696851]
[1745571659479,6.4796,154.28,154.27,5.06696851]
[1745571659685,6.4796,154.28,154.25,34.64756851]
[1745571659886,5.06696851,154.32,154.25,28.16696851]
[1745571660089,6.4793,154.29,154.26,6.4801]